lending/lending_fUSD_20241229
["ID","MTS","AMOUNT","RATE_DAILY","PERIOD"]
[346988096,1735455036510,-500.0,0.00012998,2]
[346988097,1735455036519,-500.0,0.00012998,2]
[346988098,1735455036529,-91.92467025,0.00012998,2]
[346988099,1735455036579,-408.07532975,0.00012998,2]
[346988100,1735455036589,-500.0,0.00012998,2]
[346988101,1735455036599,-500.0,0.00012998,2]
[346988102,1735455036609,-395.88542986,0.00012998,2]
[346988103,1735455036621,-104.11457014,0.00012998,2]
[346988104,1735455036630,-500.0,0.00012998,2]
[346988105,1735455036639,-500.0,0.00012998,2]
[346988106,1735455036650,-500.0,0.00012998,2]
[346988107,1735455036660,-500.0,0.00012998,2]
[346988108,1735455036669,-500.0,0.00012998,2]
[346988109,1735455036678,-500.0,0.00012998,2]
[346988110,1735455036688,-500.0,0.00012998,2]
[346988111,1735455036697,-500.0,0.00012998,2]
[346988112,1735455036706,-500.0,0.00012998,2]
[346988113,1735455036715,-500.0,0.00012998,2]
[346988114,1735455036725,-456.88542986,0.00012998,2]
[346988115,1735455036736,-178.59524975,0.00012998,2]
[346988116,1735455036746,-500.0,0.00012999,2]
[346988117,1735455036756,-304.38475025,0.00012999,2]
[346988118,1735455036772,-195.61524975,0.00012999,2]
[346988119,1735455036784,-304.38475025,0.00012999,2]
[346988120,1735455036804,-57.24051526,0.00012999,2]
[346988121,1735455036814,-417.97948479,0.00012999,2]
[346988122,1735455036826,-82.02051521,0.00012999,2]
[346988123,1735455036836,-500.0,0.00012999,2]
[346988124,1735455036847,-500.0,0.00012999,2]
[346988125,1735455036856,-500.0,0.00012999,2]
[346988126,1735455036865,-500.0,0.00012999,2]
[346988127,1735455036874,-500.0,0.00012999,2]
[346988128,1735455036884,-500.0,0.00012999,2]
[346988129,1735455036893,-500.0,0.00012999,2]
[346988130,1735455036903,-417.97948639,0.00012999,2]
[346988131,1735455036914,-82.02051361,0.00012999,2]
[346988132,1735455036924,-500.0,0.00012999,2]
[346988133,1735455036934,-4.17948639,0.00012999,2]
[346988134,1735455036959,-495.82051361,0.00012999,2]
[346988135,1735455036969,-500.0,0.00012999,2]
[346988136,1735455036978,-500.0,0.00012999,2]
[346988137,1735455036987,-500.0,0.00012999,2]
[346988138,1735455036998,-500.0,0.00012999,2]
[346988139,1735455037007,-500.0,0.00012999,2]
[346988140,1735455037016,-500.0,0.00012999,2]
[346988141,1735455037026,-500.0,0.00012999,2]
[346988142,1735455037035,-10.64493121,0.00012999,2]
[346988143,1735455037049,-489.35506879,0.00012999,2]
[346988144,1735455037059,-500.0,0.00012999,2]
[346988145,1735455037069,-500.0,0.00012999,2]
[346988146,1735455037079,-178.76943762,0.00012999,2]
[346988147,1735455037090,-321.23056238,0.00012999,2]
[346988148,1735455037099,-277.70606101,0.00012999,2]
[346988157,1735455038284,-500.0,0.00012976,2]
[346988158,1735455038294,-222.29393899,0.00012999,2]
[346988159,1735455038303,-173.53644794,0.00012999,2]
[346988160,1735455038313,-123.92159312,0.00012999,2]
[346988161,1735455038324,-376.07840688,0.00012999,2]
[346988162,1735455038334,-308.22159452,0.00012999,2]
[346988163,1735455038352,-191.77840548,0.00012999,2]
[346988164,1735455038361,-500.0,0.00012999,2]
[346988165,1735455038370,-500.0,0.00012999,2]
[346988166,1735455038379,-490.96297571,0.00012999,2]
[346988167,1735455038391,-796.50702429,0.00012999,2]
[346988168,1735455038400,-500.0,0.00012999,2]
[346988169,1735455038409,-500.0,0.00012999,2]
[346988170,1735455038419,-500.0,0.00012999,2]
[346988171,1735455038428,-500.0,0.00012999,2]
[346988172,1735455038437,-500.5229721,0.00012999,2]
[346988173,1735455038446,-501.62741425,0.00012999,2]
[346988174,1735455038456,-500.0,0.00012999,2]
[346988175,1735455038466,-502.48771671,0.00012999,2]
[346988176,1735455038477,-500.0,0.00012999,2]
[346988177,1735455038486,-501.88375643,0.00012999,2]
[346988178,1735455038495,-500.0,0.00012999,2]
[346988179,1735455038505,-766.99,0.00012999,2]
[346988180,1735455038514,-500.0,0.00012999,2]
[346988181,1735455038523,-500.0,0.00012999,2]
[346988182,1735455038533,-500.0,0.00012999,2]
[346988183,1735455038545,-500.0,0.00012999,2]
[346988184,1735455038555,-500.0,0.00012999,2]
[346988185,1735455038565,-2469.36,0.00012999,2]
[346988186,1735455038575,-500.0,0.00012999,2]
[346988187,1735455038587,-399.4729345,0.00012999,2]
[346988188,1735455038599,-501.2178383,0.00012999,2]
[346988189,1735455038608,-500.0,0.00012999,2]
[346988190,1735455038617,-500.0,0.00012999,2]
[346988191,1735455038628,-500.0,0.00012999,2]
[346988192,1735455038638,-500.0,0.00012999,2]
[346988193,1735455038648,-500.0,0.00012999,2]
[346988194,1735455038659,-500.0,0.00012999,2]
[346988195,1735455038669,-500.0,0.00012999,2]
[346988196,1735455038680,-847.19,0.00012999,2]
[346988197,1735455038689,-500.0,0.00012999,2]
[346988198,1735455038699,-614.61226096,0.00012999,2]
[346988199,1735455038708,-498.21078547,0.00012999,2]
[346988200,1735455038718,-500.0,0.00012999,2]
[346988201,1735455038730,-500.0,0.00012999,2]
[346988202,1735455038741,-500.0,0.00012999,2]
[346988204,1735455038751,-500.0,0.00012999,2]
[346988206,1735455038762,-2977.77,0.00012999,2]
[346988207,1735455038771,-500.0,0.00012999,2]
[346988209,1735455038780,-202.32395614,0.00012999,2]
[346988211,1735455038790,-500.0,0.00012999,2]
[346988213,1735455038800,-500.0,0.00012999,2]
[346988215,1735455038809,-500.0,0.00012999,2]
[346988217,1735455038818,-504.11539044,0.00012999,2]
[346988219,1735455038827,-1413.88,0.00012999,2]
[346988221,1735455038836,-500.0,0.00012999,2]
[346988223,1735455038845,-500.0,0.00012999,2]
[346988225,1735455038854,-500.0,0.00012999,2]
[346988227,1735455038863,-500.0,0.00012999,2]
[346988229,1735455038872,-2564.17,0.00012999,2]
[346988231,1735455038881,-500.0,0.00012999,2]
[346988233,1735455038891,-349.61472363,0.00012999,2]
[346988235,1735455038900,-5879.11,0.00012999,2]
[346988237,1735455038909,-500.0,0.00012999,2]
[346988239,1735455038918,-500.0,0.00012999,2]
[346988241,1735455038927,-500.0,0.00012999,2]
[346988258,1735455038936,-504.35864698,0.00012999,2]
[346988263,1735455039125,-500.0,0.00012999,2]
[346988265,1735455039135,-500.0,0.00012999,2]
[346988267,1735455039144,-875.14,0.00012999,2]
[346988269,1735455039153,-500.0,0.00012999,2]
[346988271,1735455039163,-502.54896531,0.00012999,2]
[346988273,1735455039172,-500.0,0.00012999,2]
[346988275,1735455039182,-500.0,0.00012999,2]
[346988277,1735455039192,-500.0,0.00012999,2]
[346988279,1735455039201,-500.0,0.00012999,2]
[346988281,1735455039210,-500.0,0.00012999,2]
[346988283,1735455039219,-1191.88,0.00012999,2]
[346988285,1735455039228,-500.0,0.00012999,2]
[346988287,1735455039237,-500.0,0.00012999,2]
[346988289,1735455039247,-500.0,0.00012999,2]
[346988291,1735455039256,-500.0,0.00012999,2]
[346988294,1735455039265,-502.18966623,0.00012999,2]
[346988296,1735455039275,-573.75,0.00012999,2]
[346988298,1735455039285,-500.0,0.00012999,2]
[346988300,1735455039294,-500.0,0.00012999,2]
[346988302,1735455039303,-500.0,0.00012999,2]
[346988304,1735455039312,-500.0,0.00012999,2]
[346988306,1735455039321,-500.0,0.00012999,2]
[346988308,1735455039330,-500.0,0.00012999,2]
[346988310,1735455039340,-520.17227007,0.00012999,2]
[346988312,1735455039349,-5094.89,0.00012999,2]
[346988314,1735455039359,-500.0,0.00012999,2]
[346988316,1735455039368,-500.0,0.00012999,2]
[346988318,1735455039377,-500.0,0.00012999,2]
[346988320,1735455039386,-500.0,0.00012999,2]
[346988322,1735455039395,-4848.17,0.00012999,2]
[346988324,1735455039404,-500.0,0.00012999,2]
[346988326,1735455039413,-500.0,0.00012999,2]
[346988328,1735455039422,-503.0461874,0.00012999,2]
[346988330,1735455039431,-500.0,0.00012999,2]
[346988332,1735455039441,-500.0,0.00012999,2]
[346988334,1735455039450,-500.0,0.00012999,2]
[346988336,1735455039459,-500.0,0.00012999,2]
[346988338,1735455039469,-500.0,0.00012999,2]
[346988340,1735455039478,-500.0,0.00012999,2]
[346988342,1735455039487,-500.0,0.00012999,2]
[346988344,1735455039497,-864.45,0.00012999,2]
[346988346,1735455039506,-500.0,0.00012999,2]
[346988348,1735455039515,-500.0,0.00012999,2]
[346988350,1735455039524,-500.0,0.00012999,2]
[346988352,1735455039533,-504.48444619,0.00012999,2]
[346988354,1735455039542,-500.0,0.00012999,2]
[346988355,1735455039551,-500.0,0.00012999,2]
[346988357,1735455039560,-500.0,0.00012999,2]
[346988359,1735455039568,-500.0,0.00012999,2]
[346988361,1735455039578,-500.0,0.00012999,2]
[346988363,1735455039587,-500.0,0.00012999,2]
[346988366,1735455039596,-882.86,0.00012999,2]
[346988367,1735455039605,-500.0,0.00012999,2]
[346988370,1735455039614,-500.0,0.00012999,2]
[346988372,1735455039623,-516.93376096,0.00012999,2]
[346988374,1735455039632,-500.0,0.00012999,2]
[346988375,1735455039641,-500.0,0.00012999,2]
[346988377,1735455039650,-500.0,0.00012999,2]
[346988380,1735455039660,-2198.8,0.00012999,2]
[346988381,1735455039669,-500.0,0.00012999,2]
[346988383,1735455039678,-500.0,0.00012999,2]
[346988386,1735455039691,-500.0,0.00012999,2]
[346988388,1735455039700,-500.0,0.00012999,2]
[346988390,1735455039709,-500.0,0.00012999,2]
[346988392,1735455039719,-500.0,0.00012999,2]
[346988394,1735455039728,-1161.9,0.00012999,2]
[346988396,1735455039737,-500.0,0.00012999,2]
[346988398,1735455039747,-500.0,0.00012999,2]
[346988400,1735455039756,-541.0,0.00013,2]
[346988401,1735455039765,-2123.92960527,0.00013,2]
[346988403,1735455039774,-206261.86342891,0.00013,2]
[346988407,1735455039798,-949.91021745,0.00013,2]
[346988409,1735455039809,-333.37312191,0.00013,2]
[346988413,1735455039833,-500.0,0.00012999,2]
[346988415,1735455039842,-59170.1605437,0.00013,2]
[346988417,1735455039853,-4469.77747567,0.00013,2]
[346988419,1735455039864,-21374.17669279,0.00013,2]
[346988421,1735455039876,-16080.24339231,0.00013,2]
[346988423,1735455039885,-8358.94802311,0.00013,2]
[346988426,1735455039896,-13626.47147605,0.00013,2]
[346988428,1735455039906,-40591.51144084,0.00013,2]
[346988430,1735455039917,-8296.4823093,0.00013,2]
[346988486,1735455040393,-722.19529931,0.00013,2]
[346988493,1735455040428,-802.66496489,0.00013,2]
[346988496,1735455040439,-632.27300002,0.00013,2]
[346988498,1735455040451,-425.1582348,0.00013,2]
[346988502,1735455040539,-3177.62381326,0.00013,2]
[346988503,1735455040551,-604.27660424,0.00013,2]
[346988504,1735455040563,-2958.45,0.00013,2]
[346988506,1735455040574,-1787.55805162,0.00013,2]
[346988508,1735455040586,-151627.34820672,0.00013,2]
[346988510,1735455040597,-2240.91721747,0.00013,2]
[346988520,1735455040683,-1834.83367213,0.00013,2]
[346988523,1735455040694,-9850.47681093,0.00013,2]
[346988525,1735455040705,-3921.85285614,0.00013,2]
[346988527,1735455040717,-316.0019698,0.00013,2]
[346988545,1735455040878,-1193.40414671,0.00013,2]
[346988547,1735455040890,-568.5368175,0.00013,2]
[346988715,1735455042431,-1105.61,0.00012997,2]
[346988717,1735455042442,-1233.83,0.00012997,2]
[346988719,1735455042452,-500.0,0.00012999,2]
[346988721,1735455042461,-2403.30940921,0.00013,2]
[346988723,1735455042475,-1132.58449139,0.00013,2]
[346988726,1735455042487,-745.69637923,0.00013,2]
[346988728,1735455042498,-584.65465024,0.00013,2]
[346988730,1735455042508,-6855.90067227,0.00013,2]
[346988732,1735455042519,-930.16104195,0.00013,2]
[346988742,1735455042604,-669.01592684,0.00013,2]
[346988745,1735455042614,-1469.6840553,0.00013,2]
[346988746,1735455042625,-2695.74136285,0.00013,2]
[346988747,1735455042636,-3427.16215668,0.00013,2]
[346988748,1735455042667,-500.0,0.00012974,2]
[346988749,1735455042676,-500.0,0.00012999,2]
[346988750,1735455042684,-5971.48568337,0.00013,2]
[346988755,1735455042725,-6198.79,0.00013,2]
[346988757,1735455042736,-7336.18371553,0.00013,2]
[346988759,1735455042747,-1580.61261136,0.00013,2]
[346988762,1735455042758,-21533.27470492,0.00013,2]
[346988764,1735455042769,-10377.31968114,0.00013,2]
[346989035,1735455045411,-500.0,0.00012997,2]
[346989038,1735455045420,-500.0,0.00012998,2]
[346989041,1735455045430,-500.0,0.00012999,2]
[346989043,1735455045439,-5742.9568409,0.00013,2]
[346989048,1735455045454,-463.49596685,0.00013,2]
[346989051,1735455045465,-324.95834368,0.00013,2]
[346989054,1735455045476,-500.0,0.00013,2]
[346989057,1735455045487,-1865.90015416,0.00013,2]
[346989060,1735455045499,-602.0,0.00013,2]
[346989062,1735455045510,-2312.42048,0.00013,2]
[346989064,1735455045521,-1449.07818022,0.00013,2]
[346989066,1735455045532,-9623.7,0.00013,2]
[346989068,1735455045544,-4910.85038656,0.00013,2]
[346989071,1735455045555,-476576.26543964,0.00013,2]
[346989076,1735455045593,-8987.6809423,0.00013,2]
[346989078,1735455045607,-3571.66243526,0.00013,2]
[346989080,1735455045619,-537.95884337,0.00013,2]
[346989083,1735455045631,-2049.27708235,0.00013,2]
[346989089,1735455045685,-372.26757693,0.00012977,2]
[346989091,1735455045694,-930.909355,0.00013,2]
[346989094,1735455045705,-13917.51677167,0.00013,2]
[346989096,1735455045717,-329.28679629,0.00013,2]
[346989098,1735455045728,-772.55535971,0.00013,2]
[346989100,1735455045739,-38916.72389401,0.00013,2]
[346989102,1735455045750,-2238.27476078,0.00013,2]
[346989849,1735455053035,-274.8333763,0.00013,2]
[346990029,1735455111498,158.39,0.00010137,2]
[346990032,1735455144479,195.7032159,0.00023,120]
[346990033,1735455162931,554.28,0.00010201,2]
[346990034,1735455308709,500.0,0.0002469,120]
[346990035,1735455336114,500.0,0.0002469,120]
[346990036,1735455352022,500.0,0.0002469,120]
[346990037,1735455366576,175.17686483,0.0002469,120]
[346990038,1735455377977,500.0,0.0002469,120]
[346990039,1735455600127,163.22043765,0.00011,2]
[346990040,1735455664867,1760.09619161,0.00024684,120]
[346990045,1735455851468,3000.0,0.0002469,120]
[346990077,1735456091209,175.28066484,0.0002469,120]
[346990079,1735456144053,235.19,0.00010137,2]
[346990108,1735456231752,-188.21,0.00011559,2]
[346990109,1735456231762,-438.86,0.00011585,2]
[346990110,1735456231771,-1041.21,0.00011592,2]
[346990111,1735456231779,-200.0,0.00011632,2]
[346990112,1735456231788,-336.38,0.00011681,2]
[346990113,1735456231797,-369.42,0.00011701,2]
[346990114,1735456231806,-23900.0,0.00011738,2]
[346990115,1735456231815,-166.24,0.00011767,2]
[346990116,1735456231824,-19540.0,0.00011794,2]
[346990117,1735456231833,-1000.0,0.00011822,2]
[346990118,1735456231841,-168.0,0.00011849,2]
[346990119,1735456231850,-1852.42,0.00011875,2]
[346990120,1735456231859,-700.63,0.00011911,2]
[346990121,1735456231868,-1500.0,0.00011911,2]
[346990122,1735456231876,-250.0,0.00011911,2]
[346990123,1735456231885,-732.45,0.00011911,2]
[346990124,1735456231894,-450.0,0.00012,2]
[346990125,1735456231903,-250.0,0.00012027,2]
[346990126,1735456231912,-370.63,0.00012257,2]
[346990127,1735456231921,-169.43,0.00012309,2]
[346990128,1735456231930,-356.529,0.0001235,2]
[346990129,1735456231938,-378.7,0.00012399,2]
[346990130,1735456231947,-382.37,0.00012411,2]
[346990131,1735456231956,-378.57,0.00012432,2]
[346990132,1735456231965,-554.28,0.00012465,2]
[346990133,1735456231974,-378.6,0.00012468,2]
[346990134,1735456231983,-375.97,0.00012527,2]
[346990135,1735456231992,-372.14,0.00012626,2]
[346990136,1735456232002,-150.0,0.00012791,2]
[346990137,1735456232010,-368.67,0.00012793,2]
[346990138,1735456232019,-31361.5901,0.000128,2]
[346990140,1735456232028,-35756.90151893,0.00012898,2]
[346990143,1735456232046,-5565.66180481,0.00012898,2]
[346990145,1735456232063,-5193.70902056,0.00012898,2]
[346990217,1735456232527,202.4,9.252e-05,2]
[346990284,1735456237485,-178.63430208,0.00011667,2]
[346990286,1735456237494,-1297.91569792,0.00012898,2]
[346990289,1735456237594,-7702.8642812,0.00012898,2]
[346990294,1735456238031,-5104.097172,0.00012898,2]
[346990451,1735456239656,-764.75220241,0.00012898,2]
[346990457,1735456239699,-2485.58710245,0.00012898,2]
[346990469,1735456239806,-16795.2913419,0.00012898,2]
[346990473,1735456239862,-2174.37775782,0.00012898,2]
[346990474,1735456239871,-5403.2172,0.00012898,2]
[346990477,1735456239881,-159.6627,0.00012899,2]
[346990479,1735456239889,-2860.99639607,0.000129,2]
[346990822,1735456243079,-2284.79250393,0.000129,2]
[346990824,1735456243088,-10135.0248153,0.000129,2]
[346990826,1735456243097,-150.0,0.00012964,2]
[346990827,1735456243106,-500.0,0.00012974,2]
[346990829,1735456243114,-570.44,0.00012974,2]
[346990830,1735456243123,-2236.97,0.00012974,2]
[346990831,1735456243132,-676.75,0.00012974,2]
[346990832,1735456243141,-500.0,0.00012974,2]
[346990833,1735456243149,-500.0,0.00012974,2]
[346990834,1735456243158,-500.0,0.00012974,2]
[346990836,1735456243167,-189.41601675,0.00012974,2]
[346990846,1735456243253,-310.58398325,0.00012974,2]
[346990848,1735456243264,-761.74,0.00012974,2]
[346990850,1735456243274,-500.0,0.00012974,2]
[346990852,1735456243284,-500.0,0.00012974,2]
[346990854,1735456243293,-44.64946197,0.00012974,2]
[346990857,1735456243309,-455.35053803,0.00012974,2]
[346990859,1735456243318,-500.0,0.00012974,2]
[346990861,1735456243328,-567.86,0.00012974,2]
[346990863,1735456243337,-177.27684145,0.00012974,2]
[346991166,1735456246371,-854.85537621,0.00012833,2]
[346991175,1735456246450,-963.52268,0.00012833,2]
[346991184,1735456246533,-479.66,0.00012833,2]
[346991188,1735456246553,-20765.62593679,0.00012833,2]
[346991190,1735456246562,-322.72315855,0.00012974,2]
[346991192,1735456246571,-500.0,0.00012974,2]
[346991194,1735456246581,-500.0,0.00012974,2]
[346991196,1735456246590,-347.3824768,0.00012974,2]
[346991197,1735456246599,-500.0,0.00012974,2]
[346991199,1735456246609,-500.0,0.00012974,2]
[346991201,1735456246618,-500.0,0.00012975,2]
[346991203,1735456246627,-500.0,0.00012975,2]
[346991205,1735456246636,-500.0,0.00012975,2]
[346991207,1735456246646,-3030.35,0.00012975,2]
[346991209,1735456246654,-500.0,0.00012975,2]
[346991211,1735456246663,-476.26663188,0.00012975,2]
[346991213,1735456246672,-500.0,0.00012975,2]
[346991214,1735456246681,-1096.86,0.00012975,2]
[346991215,1735456246689,-500.0,0.00012975,2]
[346991216,1735456246699,-500.0,0.00012975,2]
[346991217,1735456246708,-544.97400993,0.00012975,2]
[346991218,1735456246716,-500.0,0.00012975,2]
[346991219,1735456246725,-3435.42,0.00012975,2]
[346991220,1735456246734,-500.0,0.00012975,2]
[346991221,1735456246744,-1000.0,0.00012975,2]
[346991223,1735456246753,-500.0,0.00012975,2]
[346991225,1735456246762,-500.0,0.00012975,2]
[346991227,1735456246772,-500.0,0.00012975,2]
[346991229,1735456246781,-219.63338577,0.00012976,2]
[346991231,1735456246790,-501.45304513,0.00012976,2]
[346991233,1735456246799,-500.84579025,0.00012976,2]
[346991236,1735456246809,-500.0,0.00012976,2]
[346991237,1735456246818,-504.75025687,0.00012976,2]
[346991239,1735456246827,-500.0,0.00012976,2]
[346991241,1735456246836,-720.015,0.00012978,2]
[346991243,1735456246845,-150.0,0.00012983,2]
[346991245,1735456246854,-547.74,0.00012995,2]
[346991247,1735456246863,-1316.5,0.00012995,2]
[346991249,1735456246872,-552.19,0.00012995,2]
[346991251,1735456246882,-1080.37,0.00012995,2]
[346991253,1735456246891,-500.0,0.00012995,2]
[346991255,1735456246900,-500.0,0.00012995,2]
[346991257,1735456246908,-890.23,0.00012996,2]
[346991259,1735456246918,-3107.57,0.00012996,2]
[346991261,1735456246927,-1480.06,0.00012996,2]
[346991263,1735456246936,-2683.42,0.00012996,2]
[346991265,1735456246945,-5634.15,0.00012996,2]
[346991267,1735456246954,-917.05,0.00012996,2]
[346991269,1735456246963,-1726.6,0.00012996,2]
[346991271,1735456246972,-1253.32,0.00012996,2]
[346991273,1735456246981,-602.17673671,0.00012996,2]
[346991275,1735456246993,-608.07326329,0.00012996,2]
[346991277,1735456247002,-1219.19,0.00012996,2]
[346991280,1735456247011,-4945.1,0.00012996,2]
[346991282,1735456247024,-500.0,0.00012996,2]
[346991284,1735456247034,-3437.94,0.00012996,2]
[346991285,1735456247044,-4973.52,0.00012996,2]
[346991288,1735456247054,-536.13,0.00012996,2]
[346991290,1735456247063,-920.32,0.00012996,2]
[346991291,1735456247073,-5344.09,0.00012996,2]
[346991294,1735456247082,-943.37,0.00012996,2]
[346991296,1735456247091,-2074.94,0.00012996,2]
[346991297,1735456247101,-920.03,0.00012996,2]
[346991299,1735456247110,-5222.19,0.00012996,2]
[346991302,1735456247120,-1483.6,0.00012996,2]
[346991303,1735456247129,-2244.54,0.00012996,2]
[346991306,1735456247138,-1675.94,0.00012996,2]
[346991308,1735456247147,-1818.15,0.00012996,2]
[346991310,1735456247157,-1213.4,0.00012996,2]
[346991311,1735456247166,-500.0,0.00012996,2]
[346991314,1735456247176,-1619.37,0.00012996,2]
[346991316,1735456247185,-500.0,0.00012996,2]
[346991318,1735456247196,-2998.56,0.00012996,2]
[346991320,1735456247206,-1420.57,0.00012996,2]
[346991322,1735456247215,-1280.46,0.00012996,2]
[346991324,1735456247225,-500.0,0.00012996,2]
[346991326,1735456247234,-500.0,0.00012996,2]
[346991328,1735456247243,-700.23,0.00012996,2]
[346991330,1735456247253,-778.47,0.00012996,2]
[346991332,1735456247266,-1343.82,0.00012996,2]
[346991334,1735456247276,-500.0,0.00012997,2]
[346991336,1735456247285,-500.0,0.00012997,2]
[346991338,1735456247294,-500.0,0.00012997,2]
[346991340,1735456247304,-500.0,0.00012997,2]
[346991342,1735456247314,-500.0,0.00012997,2]
[346991344,1735456247323,-500.0,0.00012997,2]
[346991346,1735456247332,-500.0,0.00012997,2]
[346991348,1735456247341,-500.0,0.00012997,2]
[346991350,1735456247350,-500.0,0.00012997,2]
[346991352,1735456247362,-500.0,0.00012997,2]
[346991354,1735456247371,-500.0,0.00012997,2]
[346991356,1735456247381,-526.06,0.00012997,2]
[346991358,1735456247390,-500.0,0.00012997,2]
[346991360,1735456247400,-500.0,0.00012997,2]
[346991362,1735456247410,-500.0,0.00012997,2]
[346991364,1735456247419,-518.35,0.00012997,2]
[346991366,1735456247428,-500.0,0.00012997,2]
[346991368,1735456247440,-500.0,0.00012997,2]
[346991370,1735456247449,-500.0,0.00012997,2]
[346991372,1735456247459,-500.0,0.00012997,2]
[346991374,1735456247468,-500.0,0.00012997,2]
[346991376,1735456247478,-500.0,0.00012997,2]
[346991378,1735456247487,-500.0,0.00012997,2]
[346991380,1735456247496,-500.0,0.00012997,2]
[346991382,1735456247505,-500.0,0.00012997,2]
[346991384,1735456247516,-500.0,0.00012997,2]
[346991386,1735456247525,-500.0,0.00012997,2]
[346991388,1735456247535,-500.0,0.00012997,2]
[346991390,1735456247544,-500.0,0.00012997,2]
[346991392,1735456247553,-500.0,0.00012997,2]
[346991394,1735456247563,-500.0,0.00012997,2]
[346991396,1735456247572,-500.0,0.00012997,2]
[346991398,1735456247582,-500.0,0.00012997,2]
[346991400,1735456247591,-500.0,0.00012997,2]
[346991402,1735456247600,-500.0,0.00012997,2]
[346991404,1735456247610,-500.0,0.00012997,2]
[346991406,1735456247619,-500.0,0.00012997,2]
[346991408,1735456247628,-500.0,0.00012997,2]
[346991410,1735456247638,-522.42432838,0.00012997,2]
[346991412,1735456247648,-500.0,0.00012997,2]
[346991414,1735456247657,-500.0,0.00012997,2]
[346991416,1735456247667,-500.0,0.00012997,2]
[346991418,1735456247679,-500.0,0.00012997,2]
[346991420,1735456247689,-500.0,0.00012997,2]
[346991422,1735456247698,-500.0,0.00012997,2]
[346991424,1735456247707,-500.0,0.00012997,2]
[346991426,1735456247717,-500.0,0.00012997,2]
[346991428,1735456247727,-500.0,0.00012997,2]
[346991431,1735456247736,-500.0,0.00012997,2]
[346991433,1735456247745,-500.0,0.00012997,2]
[346991435,1735456247755,-500.0,0.00012997,2]
[346991437,1735456247765,-523.7,0.00012997,2]
[346991439,1735456247775,-500.0,0.00012997,2]
[346991441,1735456247784,-500.0,0.00012997,2]
[346991443,1735456247794,-500.0,0.00012997,2]
[346991445,1735456247803,-500.0,0.00012997,2]
[346991447,1735456247813,-500.0,0.00012997,2]
[346991449,1735456247822,-289.26414579,0.00012997,2]
[346991451,1735456247832,-2396.06,0.00012997,2]
[346991453,1735456247842,-500.0,0.00012997,2]
[346991455,1735456247851,-370.30294607,0.00012997,2]
[346991457,1735456247861,-1138.39,0.00012997,2]
[346991459,1735456247870,-155.187193,0.00012997,2]
[346991461,1735456247880,-156.19807,0.00012997,2]
[346991463,1735456247889,-860.808849,0.00012997,2]
[346991465,1735456247898,-647.500294,0.00012997,2]
[346991467,1735456247908,-8564.33,0.00012997,2]
[346991469,1735456247917,-1013.96,0.00012997,2]
[346991471,1735456247926,-1340.91,0.00012997,2]
[346991473,1735456247936,-1443.57,0.00012997,2]
[346991475,1735456247945,-500.0,0.00012998,2]
[346991477,1735456247955,-500.0,0.00012998,2]
[346991479,1735456247964,-500.0,0.00012998,2]
[346991481,1735456247975,-500.0,0.00012998,2]
[346991483,1735456247985,-505.38,0.00012998,2]
[346991485,1735456247995,-500.0,0.00012998,2]